[Event "Early-Titled-Tuesday-Blitz-June-18-2024"]
[Site "Chess.com"]
[Date "2024.06.18"]
[Round "10"]
[White "rookpower2004"]
[Black "BirdMaster3000"]
[Result "0-1"]
[WhiteElo "2502"]
[BlackElo "2784"]
[TimeControl "180+1"]
[EndTime "9:57:21 PDT"]
[Termination "BirdMaster3000 won by resignation"]

1. e4 {[%clk 0:03:00.9]} 1... c5 {[%clk 0:02:59.9]} 2. Nf3 {[%clk 0:02:58.8]}
2... e6 {[%clk 0:03:00.2]} 3. d3 {[%clk 0:02:58.1]} 3... Nc6 {[%clk 0:02:56.4]}
4. Nbd2 {[%clk 0:02:56.5]} 4... d5 {[%clk 0:02:54.9]} 5. g3 {[%clk 0:02:56.8]}
5... Nf6 {[%clk 0:02:50.5]} 6. Bg2 {[%clk 0:02:56.2]} 6... Be7 {[%clk
0:02:50.7]} 7. O-O {[%clk 0:02:54.7]} 7... Qc7 {[%clk 0:02:32.2]} 8. Re1 {[%clk
0:02:48.7]} 8... h6 {[%clk 0:02:32.2]} 9. c3 {[%clk 0:02:43]} 9... b6 {[%clk
0:02:16]} 10. d4 {[%clk 0:02:37.2]} 10... cxd4 {[%clk 0:02:13.9]} 11. Nxd4
{[%clk 0:02:34.6]} 11... Nxd4 {[%clk 0:02:09.6]} 12. cxd4 {[%clk 0:02:35.5]}
12... O-O {[%clk 0:01:57.1]} 13. e5 {[%clk 0:02:33.7]} 13... Nd7 {[%clk
0:01:52.2]} 14. Nf1 {[%clk 0:02:29.4]} 14... Ba6 {[%clk 0:01:52.2]} 15. Bf4
{[%clk 0:02:26.5]} 15... Rfc8 {[%clk 0:01:51.4]} 16. Qg4 {[%clk 0:02:20.4]}
16... Kf8 {[%clk 0:01:43.4]} 17. Rac1 {[%clk 0:02:12.8]} 17... Qb7 {[%clk
0:01:41.9]} 18. h4 {[%clk 0:02:03.8]} 18... Rxc1 {[%clk 0:01:41.9]} 19. Rxc1
{[%clk 0:02:01.1]} 19... Rc8 {[%clk 0:01:42.4]} 20. Qd1 {[%clk 0:01:56.1]} 20...
Nb8 {[%clk 0:01:38.5]} 21. Rxc8+ {[%clk 0:01:47.9]} 21... Qxc8 {[%clk
0:01:36.8]} 22. Ne3 {[%clk 0:01:48.5]} 22... Nc6 {[%clk 0:01:34.8]} 23. Ng4
{[%clk 0:01:42.7]} 23... Nb4 {[%clk 0:01:30]} 24. Nxh6 {[%clk 0:01:18]} 24...
gxh6 {[%clk 0:01:28.8]} 25. Bxh6+ {[%clk 0:01:16.9]} 25... Ke8 {[%clk
0:01:29.2]} 26. Qg4 {[%clk 0:01:15.9]} 26... Kd7 {[%clk 0:01:21.5]} 27. Bg5
{[%clk 0:01:15.2]} 27... Qg8 {[%clk 0:01:15.8]} 28. f4 {[%clk 0:01:06.9]} 28...
Bxg5 {[%clk 0:01:13.1]} 29. fxg5 {[%clk 0:01:03.3]} 29... Qh7 {[%clk 0:01:08.3]}
30. h5 {[%clk 0:00:58.6]} 30... Qb1+ {[%clk 0:01:07.6]} 31. Kh2 {[%clk
0:00:56.4]} 31... Bd3 {[%clk 0:01:07.9]} 32. Qf4 {[%clk 0:00:49.6]} 32... Bf5
{[%clk 0:00:58.5]} 33. g4 {[%clk 0:00:46.3]} 33... Nd3 {[%clk 0:00:58.2]} 34.
Qf3 {[%clk 0:00:39.6]} 34... Ne1 {[%clk 0:00:57]} 35. Qf1 {[%clk 0:00:30.2]}
35... Nxg2 {[%clk 0:00:53.8]} 36. Qxg2 {[%clk 0:00:17.9]} 36... Be4 {[%clk
0:00:54]} 37. Qf2 {[%clk 0:00:06.6]} 37... Ke8 {[%clk 0:00:50.9]} 38. h6 {[%clk
0:00:05.5]} 38... Qc2 {[%clk 0:00:48.3]} 39. Kg3 {[%clk 0:00:03.8]} 39... Qxf2+
{[%clk 0:00:47.9]} 40. Kxf2 {[%clk 0:00:02.1]} 40... Bg6 {[%clk 0:00:48.5]} 41.
Ke3 {[%clk 0:00:01.7]} 41... Kd7 {[%clk 0:00:48.5]} 42. Kd2 {[%clk 0:00:02.3]}
42... Kc6 {[%clk 0:00:49]} 43. Kc3 {[%clk 0:00:03]} 43... Kb5 {[%clk 0:00:48.7]}
44. a3 {[%clk 0:00:03.2]} 44... Ka4 {[%clk 0:00:48.3]} 45. Kd2 {[%clk
0:00:01.9]} 45... Kb3 {[%clk 0:00:48.2]} 46. Kc1 {[%clk 0:00:02.6]} 46... b5
{[%clk 0:00:48.3]} 0-1

[Event "Early-Titled-Tuesday-Blitz-June-18-2024"]
[Site "Chess.com"]
[Date "2024.06.18"]
[Round "10"]
[White "CSB7"]
[Black "GOGIEFF"]
[Result "1/2-1/2"]
[WhiteElo "2766"]
[BlackElo "2994"]
[TimeControl "180+1"]
[EndTime "9:57:25 PDT"]
[Termination "Game drawn by repetition"]

1. d4 {[%clk 0:03:00.9]} 1... Nf6 {[%clk 0:02:59.2]} 2. c4 {[%clk 0:03:01]} 2...
e6 {[%clk 0:02:59.7]} 3. Nf3 {[%clk 0:03:01.2]} 3... d5 {[%clk 0:03:00]} 4. Nc3
{[%clk 0:03:01.2]} 4... c6 {[%clk 0:03:00]} 5. Bg5 {[%clk 0:03:01]} 5... h6
{[%clk 0:02:59.7]} 6. Bh4 {[%clk 0:03:01.1]} 6... dxc4 {[%clk 0:02:59.2]} 7. e4
{[%clk 0:03:00.9]} 7... g5 {[%clk 0:02:59.7]} 8. Bg3 {[%clk 0:02:59.3]} 8... b5
{[%clk 0:02:59.9]} 9. Be2 {[%clk 0:02:58.1]} 9... Bb7 {[%clk 0:03:00.3]} 10. Qc2
{[%clk 0:02:43.1]} 10... Nbd7 {[%clk 0:02:58.6]} 11. Rd1 {[%clk 0:02:38.3]}
11... Nh5 {[%clk 0:02:58.5]} 12. d5 {[%clk 0:02:37.7]} 12... Nxg3 {[%clk
0:02:57.2]} 13. hxg3 {[%clk 0:02:38.6]} 13... Qf6 {[%clk 0:02:43.3]} 14. dxc6
{[%clk 0:01:24.8]} 14... Bxc6 {[%clk 0:02:40.4]} 15. O-O {[%clk 0:01:09.2]}
15... Bc5 {[%clk 0:02:36.8]} 16. a4 {[%clk 0:00:59]} 16... a6 {[%clk 0:02:30]}
17. axb5 {[%clk 0:00:58.7]} 17... axb5 {[%clk 0:02:30.9]} 18. e5 {[%clk
0:00:59.2]} 18... Qf5 {[%clk 0:02:30]} 19. Qxf5 {[%clk 0:00:49]} 19... exf5
{[%clk 0:02:30]} 20. Nd4 {[%clk 0:00:44.9]} 20... Bxd4 {[%clk 0:02:19.4]} 21.
Rxd4 {[%clk 0:00:45.8]} 21... Nxe5 {[%clk 0:02:04.3]} 22. Nxb5 {[%clk
0:00:40.8]} 22... Bxb5 {[%clk 0:01:44.7]} 23. Rd5 {[%clk 0:00:40.6]} 23... f6
{[%clk 0:01:28.2]} 24. Rxb5 {[%clk 0:00:39.9]} 24... f4 {[%clk 0:01:28.7]} 25.
Rc1 {[%clk 0:00:28.7]} 25... fxg3 {[%clk 0:01:27.5]} 26. fxg3 {[%clk 0:00:28.7]}
26... Rc8 {[%clk 0:01:23.8]} 27. Bxc4 {[%clk 0:00:19.1]} 27... Nxc4 {[%clk
0:01:21.9]} 28. Rxc4 {[%clk 0:00:18.1]} 28... Rxc4 {[%clk 0:01:21.9]} 29. Rb8+
{[%clk 0:00:18.7]} 29... Kf7 {[%clk 0:01:22.3]} 30. Rxh8 {[%clk 0:00:19.1]}
30... Kg6 {[%clk 0:01:23]} 31. Rb8 {[%clk 0:00:15.2]} 31... h5 {[%clk
0:01:23.4]} 32. b4 {[%clk 0:00:13.9]} 32... Kf5 {[%clk 0:01:22.6]} 33. b5 {[%clk
0:00:13.2]} 33... Kg4 {[%clk 0:01:22.1]} 34. Kh2 {[%clk 0:00:13.9]} 34... Rb4
{[%clk 0:01:21.7]} 35. b6 {[%clk 0:00:13.3]} 35... Rb3 {[%clk 0:01:22.1]} 36. b7
{[%clk 0:00:13.3]} 36... f5 {[%clk 0:01:22.4]} 37. Rc8 {[%clk 0:00:10]} 37...
Rxb7 {[%clk 0:01:22.3]} 38. Rc4+ {[%clk 0:00:10.7]} 38... f4 {[%clk 0:01:22.9]}
39. gxf4 {[%clk 0:00:11.3]} 39... gxf4 {[%clk 0:01:23.8]} 40. Rc3 {[%clk
0:00:11.7]} 40... Rb2 {[%clk 0:01:23.8]} 41. Ra3 {[%clk 0:00:11.5]} 41... Re2
{[%clk 0:01:23.5]} 42. Rc3 {[%clk 0:00:11.9]} 42... h4 {[%clk 0:01:22.4]} 43.
Ra3 {[%clk 0:00:11.8]} 43... Re3 {[%clk 0:01:22.8]} 44. Ra2 {[%clk 0:00:12]}
44... h3 {[%clk 0:01:22.2]} 45. gxh3+ {[%clk 0:00:11.4]} 45... Rxh3+ {[%clk
0:01:23.1]} 46. Kg2 {[%clk 0:00:09]} 46... Rg3+ {[%clk 0:01:22.4]} 47. Kf2
{[%clk 0:00:07.8]} 47... Rb3 {[%clk 0:01:20.4]} 48. Rc2 {[%clk 0:00:05.5]} 48...
Rh3 {[%clk 0:01:14.7]} 49. Kg2 {[%clk 0:00:05.3]} 49... f3+ {[%clk 0:01:15]} 50.
Kg1 {[%clk 0:00:05.9]} 50... Kg3 {[%clk 0:01:15.4]} 51. Rg2+ {[%clk 0:00:05.7]}
51... Kf4 {[%clk 0:01:15.8]} 52. Ra2 {[%clk 0:00:04.3]} 52... Rh8 {[%clk
0:01:16.3]} 53. Ra4+ {[%clk 0:00:02.8]} 53... Kg3 {[%clk 0:01:15.9]} 54. Ra2
{[%clk 0:00:03]} 54... Rb8 {[%clk 0:01:09.5]} 55. Rg2+ {[%clk 0:00:02.9]} 55...
Kf4 {[%clk 0:01:09.9]} 56. Rg7 {[%clk 0:00:03.2]} 56... Rb1+ {[%clk 0:01:08.1]}
57. Kf2 {[%clk 0:00:03.4]} 57... Rb2+ {[%clk 0:01:08.4]} 58. Kf1 {[%clk
0:00:03.9]} 58... Rb1+ {[%clk 0:01:00.5]} 59. Kf2 {[%clk 0:00:03.7]} 59... Rb2+
{[%clk 0:01:01.4]} 60. Kf1 {[%clk 0:00:04.2]} 60... Rb1+ {[%clk 0:01:02.3]} 61.
Kf2 {[%clk 0:00:04.6]} 1/2-1/2

[Event "Early-Titled-Tuesday-Blitz-June-18-2024"]
[Site "Chess.com"]
[Date "2024.06.18"]
[Round "10"]
[White "BM223344"]
[Black "NikitaShnadrygin"]
[Result "0-1"]
[WhiteElo "2571"]
[BlackElo "2744"]
[TimeControl "180+1"]
[EndTime "9:57:26 PDT"]
[Termination "NikitaShnadrygin won by checkmate"]

1. d4 {[%clk 0:03:00.9]} 1... d5 {[%clk 0:03:00.2]} 2. c4 {[%clk 0:02:59.7]}
2... Nc6 {[%clk 0:03:01.1]} 3. Nf3 {[%clk 0:02:58.2]} 3... Bg4 {[%clk
0:03:00.8]} 4. e3 {[%clk 0:02:56.2]} 4... e5 {[%clk 0:03:00.7]} 5. cxd5 {[%clk
0:02:56.3]} 5... Qxd5 {[%clk 0:03:00.5]} 6. Nc3 {[%clk 0:02:56.9]} 6... Bb4
{[%clk 0:03:00.8]} 7. Be2 {[%clk 0:02:57.5]} 7... exd4 {[%clk 0:02:58]} 8. exd4
{[%clk 0:02:57.9]} 8... Bxf3 {[%clk 0:02:57.2]} 9. Bxf3 {[%clk 0:02:58.4]} 9...
Qc4 {[%clk 0:02:57.8]} 10. Bxc6+ {[%clk 0:02:53.4]} 10... bxc6 {[%clk
0:02:56.6]} 11. Qe2+ {[%clk 0:02:45.5]} 11... Qxe2+ {[%clk 0:02:53.3]} 12. Kxe2
{[%clk 0:02:46.4]} 12... Nf6 {[%clk 0:02:53]} 13. Kd3 {[%clk 0:02:46.8]} 13...
Kd7 {[%clk 0:02:16.1]} 14. f3 {[%clk 0:02:46.7]} 14... Nd5 {[%clk 0:02:15.4]}
15. Bd2 {[%clk 0:02:42.2]} 15... Bxc3 {[%clk 0:02:05.9]} 16. bxc3 {[%clk
0:02:42.2]} 16... Rhe8 {[%clk 0:01:59.3]} 17. Rab1 {[%clk 0:02:39.3]} 17... Rab8
{[%clk 0:01:41.6]} 18. c4 {[%clk 0:02:24.8]} 18... Ne7 {[%clk 0:01:41.5]} 19.
Bb4 {[%clk 0:02:14.9]} 19... Nf5 {[%clk 0:01:35.9]} 20. Bc5 {[%clk 0:02:14.9]}
20... Re3+ {[%clk 0:01:25.3]} 21. Kd2 {[%clk 0:02:11.8]} 21... Rbe8 {[%clk
0:01:26.2]} 22. Rhe1 {[%clk 0:02:00.1]} 22... a6 {[%clk 0:01:20.3]} 23. a4
{[%clk 0:01:20.8]} 23... Rxe1 {[%clk 0:01:17.5]} 24. Rxe1 {[%clk 0:01:20.6]}
24... Rxe1 {[%clk 0:01:18.4]} 25. Kxe1 {[%clk 0:01:20.7]} 25... Ne3 {[%clk
0:01:19.1]} 26. Kf2 {[%clk 0:01:12.5]} 26... Nxc4 {[%clk 0:01:18.9]} 27. Kg3
{[%clk 0:01:10.8]} 27... a5 {[%clk 0:01:02.6]} 28. Bf8 {[%clk 0:01:04.6]} 28...
g6 {[%clk 0:01:00.9]} 29. h4 {[%clk 0:00:53.1]} 29... Nb6 {[%clk 0:00:57.7]} 30.
Bh6 {[%clk 0:00:53.2]} 30... Ke6 {[%clk 0:00:48.7]} 31. Bd2 {[%clk 0:00:53.6]}
31... Nc4 {[%clk 0:00:47.6]} 32. Bc3 {[%clk 0:00:53.4]} 32... Kf5 {[%clk
0:00:38.8]} 33. Kf2 {[%clk 0:00:42.8]} 33... h5 {[%clk 0:00:38.5]} 34. g3 {[%clk
0:00:43]} 34... Ke6 {[%clk 0:00:36.1]} 35. Ke2 {[%clk 0:00:43.3]} 35... Kd5
{[%clk 0:00:28]} 36. Kd3 {[%clk 0:00:43.6]} 36... c5 {[%clk 0:00:20.3]} 37. dxc5
{[%clk 0:00:43.6]} 37... Kxc5 {[%clk 0:00:21.2]} 38. g4 {[%clk 0:00:39.1]} 38...
Kd5 {[%clk 0:00:20.3]} 39. g5 {[%clk 0:00:33.8]} 39... c5 {[%clk 0:00:19.5]} 40.
f4 {[%clk 0:00:34]} 40... Nb6 {[%clk 0:00:18.4]} 41. Bxa5 {[%clk 0:00:34.3]}
41... Nxa4 {[%clk 0:00:19]} 42. Bc3 {[%clk 0:00:33.4]} 42... c4+ {[%clk
0:00:19.1]} 43. Kc2 {[%clk 0:00:33.4]} 43... Nxc3 {[%clk 0:00:19.7]} 44. Kxc3
{[%clk 0:00:34.3]} 44... Ke4 {[%clk 0:00:20.4]} 45. f5 {[%clk 0:00:34.9]} 45...
Kf4 {[%clk 0:00:21.2]} 46. fxg6 {[%clk 0:00:34.6]} 46... fxg6 {[%clk 0:00:22.1]}
47. Kxc4 {[%clk 0:00:35.1]} 47... Kg4 {[%clk 0:00:22.8]} 48. Kd3 {[%clk
0:00:35.8]} 48... Kxh4 {[%clk 0:00:23.5]} 49. Ke4 {[%clk 0:00:36.7]} 49... Kxg5
{[%clk 0:00:24.4]} 50. Kf3 {[%clk 0:00:37.5]} 50... h4 {[%clk 0:00:24.9]} 51.
Kg2 {[%clk 0:00:37.9]} 51... Kh5 {[%clk 0:00:25.8]} 52. Kh3 {[%clk 0:00:38.8]}
52... g5 {[%clk 0:00:26.7]} 53. Kg2 {[%clk 0:00:39.5]} 53... g4 {[%clk
0:00:27.6]} 54. Kf2 {[%clk 0:00:40]} 54... Kg5 {[%clk 0:00:28.5]} 55. Ke3 {[%clk
0:00:40.4]} 55... h3 {[%clk 0:00:28.3]} 56. Kf2 {[%clk 0:00:40.9]} 56... Kf4
{[%clk 0:00:28.8]} 57. Kg1 {[%clk 0:00:41.3]} 57... g3 {[%clk 0:00:29.4]} 58.
Kh1 {[%clk 0:00:41.5]} 58... Kf3 {[%clk 0:00:27.9]} 59. Kg1 {[%clk 0:00:42]}
59... Ke2 {[%clk 0:00:27.8]} 60. Kh1 {[%clk 0:00:42.2]} 60... g2+ {[%clk
0:00:28.4]} 61. Kg1 {[%clk 0:00:42.2]} 61... Kf3 {[%clk 0:00:28.2]} 62. Kh2
{[%clk 0:00:42.8]} 62... Kf2 {[%clk 0:00:28.9]} 63. Kxh3 {[%clk 0:00:43.5]}
63... g1=Q {[%clk 0:00:29.8]} 64. Kh4 {[%clk 0:00:44.3]} 64... Kf3 {[%clk
0:00:30.3]} 65. Kh3 {[%clk 0:00:45.2]} 65... Qh1# {[%clk 0:00:30]} 0-1

[Event "Early-Titled-Tuesday-Blitz-June-18-2024"]
[Site "Chess.com"]
[Date "2024.06.18"]
[Round "10"]
[White "Jeppesen08"]
[Black "Resignify"]
[Result "1-0"]
[WhiteElo "2434"]
[BlackElo "2297"]
[TimeControl "180+1"]
[EndTime "9:57:26 PDT"]
[Termination "Jeppesen08 won on time"]

1. e4 {[%clk 0:03:00.9]} 1... d6 {[%clk 0:03:00.1]} 2. d4 {[%clk 0:03:00]} 2...
Nf6 {[%clk 0:03:00.2]} 3. Nc3 {[%clk 0:02:59.8]} 3... g6 {[%clk 0:03:00.4]} 4.
Be3 {[%clk 0:02:57.7]} 4... c6 {[%clk 0:02:58.2]} 5. f3 {[%clk 0:02:57.5]} 5...
b5 {[%clk 0:02:55.7]} 6. a3 {[%clk 0:02:55.6]} 6... Nbd7 {[%clk 0:02:51.9]} 7.
Qd2 {[%clk 0:02:54.9]} 7... Nb6 {[%clk 0:02:49.4]} 8. d5 {[%clk 0:02:54.1]} 8...
cxd5 {[%clk 0:02:44.2]} 9. Bxb5+ {[%clk 0:02:52.3]} 9... Bd7 {[%clk 0:02:44.2]}
10. Bxd7+ {[%clk 0:02:51.4]} 10... Qxd7 {[%clk 0:02:44.6]} 11. exd5 {[%clk
0:02:51.4]} 11... Nc4 {[%clk 0:02:44.1]} 12. Qc1 {[%clk 0:02:44.2]} 12... Nxe3
{[%clk 0:02:42.9]} 13. Qxe3 {[%clk 0:02:44.6]} 13... Bg7 {[%clk 0:02:31.8]} 14.
Nge2 {[%clk 0:02:42.1]} 14... Qb7 {[%clk 0:02:27.4]} 15. O-O-O {[%clk
0:02:32.7]} 15... O-O {[%clk 0:02:20.9]} 16. h4 {[%clk 0:02:23.8]} 16... h5
{[%clk 0:01:56.9]} 17. Rhg1 {[%clk 0:02:12.8]} 17... Rab8 {[%clk 0:01:40.9]} 18.
b3 {[%clk 0:02:08.3]} 18... Rfc8 {[%clk 0:01:37.8]} 19. Kb1 {[%clk 0:02:00.7]}
19... a5 {[%clk 0:01:30.7]} 20. g4 {[%clk 0:01:54.3]} 20... a4 {[%clk
0:01:19.7]} 21. Nxa4 {[%clk 0:01:51.4]} 21... Nxd5 {[%clk 0:01:16.2]} 22. Qe4
{[%clk 0:01:51.1]} 22... Nf6 {[%clk 0:00:39.8]} 23. Qxb7 {[%clk 0:01:45.3]}
23... Rxb7 {[%clk 0:00:40.7]} 24. Nec3 {[%clk 0:01:34]} 24... hxg4 {[%clk
0:00:38.6]} 25. fxg4 {[%clk 0:01:33.7]} 25... Nd7 {[%clk 0:00:37.3]} 26. Nd5
{[%clk 0:01:32.6]} 26... Ne5 {[%clk 0:00:33.6]} 27. h5 {[%clk 0:01:29]} 27... e6
{[%clk 0:00:30.7]} 28. Ne3 {[%clk 0:01:24]} 28... d5 {[%clk 0:00:25.1]} 29. hxg6
{[%clk 0:01:23.7]} 29... Nxg6 {[%clk 0:00:24.3]} 30. g5 {[%clk 0:01:21.9]} 30...
Ra8 {[%clk 0:00:23.5]} 31. Nc5 {[%clk 0:01:12.9]} 31... Rxa3 {[%clk 0:00:20.6]}
32. c3 {[%clk 0:01:07.4]} 32... Rc7 {[%clk 0:00:14.2]} 33. Kb2 {[%clk
0:01:05.1]} 33... Raa7 {[%clk 0:00:07.7]} 34. b4 {[%clk 0:01:05.7]} 34... Ra8
{[%clk 0:00:05.5]} 35. Ra1 {[%clk 0:01:04.7]} 35... Rb8 {[%clk 0:00:03.7]} 36.
Kc2 {[%clk 0:01:01.4]} 36... Rbc8 {[%clk 0:00:02.1]} 37. Ng4 {[%clk 0:01:00.9]}
37... Ne5 {[%clk 0:00:01.4]} 38. Nf6+ {[%clk 0:01:00.6]} 38... Bxf6 {[%clk
0:00:01.2]} 39. gxf6+ {[%clk 0:01:01.5]} 39... Kf8 {[%clk 0:00:01.7]} 40. Rh1
{[%clk 0:01:01.2]} 40... Ng6 {[%clk 0:00:01.8]} 41. Rag1 {[%clk 0:00:59.8]}
41... Kg8 {[%clk 0:00:01.2]} 42. Rh6 {[%clk 0:00:58]} 42... d4 {[%clk
0:00:01.1]} 43. c4 {[%clk 0:00:57.1]} 43... e5 {[%clk 0:00:01]} 44. Kd3 {[%clk
0:00:57]} 44... Rd8 {[%clk 0:00:01.2]} 45. Ne6 {[%clk 0:00:56.6]} 45... fxe6
{[%clk 0:00:01.1]} 46. Rgxg6+ {[%clk 0:00:55.8]} 46... Kf8 {[%clk 0:00:01.2]}
47. Rh8+ {[%clk 0:00:55.8]} 47... Kf7 {[%clk 0:00:01.9]} 48. Rg7+ {[%clk
0:00:56.5]} 48... Kxf6 {[%clk 0:00:02.3]} 49. Rxd8 {[%clk 0:00:52.2]} 49... Rxg7
{[%clk 0:00:01.9]} 50. c5 {[%clk 0:00:52]} 50... Rg3+ {[%clk 0:00:01.6]} 51. Kc4
{[%clk 0:00:52.5]} 51... Rc3+ {[%clk 0:00:01.7]} 52. Kb5 {[%clk 0:00:52.5]}
52... d3 {[%clk 0:00:02.3]} 53. c6 {[%clk 0:00:51.5]} 53... e4 {[%clk
0:00:02.5]} 54. Kb6 {[%clk 0:00:49.8]} 1-0

[Event "Early-Titled-Tuesday-Blitz-June-18-2024"]
[Site "Chess.com"]
[Date "2024.06.18"]
[Round "10"]
[White "yaguigor"]
[Black "JosefineHeinemann"]
[Result "1-0"]
[WhiteElo "2637"]
[BlackElo "2478"]
[TimeControl "180+1"]
[EndTime "9:57:27 PDT"]
[Termination "yaguigor won on time"]

1. Nf3 {[%clk 0:03:00.9]} 1... d5 {[%clk 0:02:59.1]} 2. c4 {[%clk 0:02:59.3]}
2... e6 {[%clk 0:02:59.1]} 3. d4 {[%clk 0:02:58.2]} 3... Nf6 {[%clk 0:02:59]} 4.
Nc3 {[%clk 0:02:56]} 4... c5 {[%clk 0:02:58.7]} 5. cxd5 {[%clk 0:02:55]} 5...
cxd4 {[%clk 0:02:59]} 6. Qa4+ {[%clk 0:02:52.9]} 6... Bd7 {[%clk 0:02:58.4]} 7.
Qxd4 {[%clk 0:02:52.6]} 7... exd5 {[%clk 0:02:59.1]} 8. Nxd5 {[%clk 0:02:41.5]}
8... Qa5+ {[%clk 0:02:55.1]} 9. Nc3 {[%clk 0:02:39.3]} 9... Nc6 {[%clk
0:02:54.3]} 10. Qe3+ {[%clk 0:02:07]} 10... Be7 {[%clk 0:02:43.6]} 11. Bd2
{[%clk 0:02:05.3]} 11... O-O {[%clk 0:02:21.5]} 12. Rc1 {[%clk 0:02:00.1]} 12...
Rfe8 {[%clk 0:01:54.9]} 13. Qg5 {[%clk 0:01:57.8]} 13... Qb6 {[%clk 0:01:48.6]}
14. Qb5 {[%clk 0:01:52.9]} 14... Qc7 {[%clk 0:01:37.9]} 15. e3 {[%clk
0:01:48.4]} 15... Rac8 {[%clk 0:01:05.8]} 16. Qb3 {[%clk 0:01:37.6]} 16... Be6
{[%clk 0:01:03.9]} 17. Qa4 {[%clk 0:01:31.8]} 17... Rcd8 {[%clk 0:00:30.9]} 18.
Bb5 {[%clk 0:01:22.8]} 18... a6 {[%clk 0:00:25.1]} 19. Bxc6 {[%clk 0:01:22.4]}
19... bxc6 {[%clk 0:00:25.5]} 20. Nd4 {[%clk 0:01:20.7]} 20... Bd7 {[%clk
0:00:21.4]} 21. Qxa6 {[%clk 0:01:17.5]} 21... Ra8 {[%clk 0:00:20.4]} 22. Qe2
{[%clk 0:01:16.4]} 22... Qb7 {[%clk 0:00:18.7]} 23. Nb3 {[%clk 0:01:12.2]} 23...
c5 {[%clk 0:00:18.2]} 24. O-O {[%clk 0:01:10.3]} 24... Be6 {[%clk 0:00:13.7]}
25. Qf3 {[%clk 0:00:49.8]} 25... Qb6 {[%clk 0:00:12.8]} 26. Ne4 {[%clk
0:00:45.3]} 26... Nxe4 {[%clk 0:00:12.2]} 27. Qxe4 {[%clk 0:00:44.9]} 27... Bxb3
{[%clk 0:00:12.2]} 28. axb3 {[%clk 0:00:44.3]} 28... Qxb3 {[%clk 0:00:13.1]} 29.
Qc2 {[%clk 0:00:42.3]} 29... Qb5 {[%clk 0:00:09.6]} 30. Bc3 {[%clk 0:00:40.9]}
30... Rab8 {[%clk 0:00:09.5]} 31. Rfd1 {[%clk 0:00:39.9]} 31... Red8 {[%clk
0:00:06.7]} 32. h3 {[%clk 0:00:35.1]} 32... h6 {[%clk 0:00:05.3]} 33. Qf5 {[%clk
0:00:27.8]} 33... Rxd1+ {[%clk 0:00:03.4]} 34. Rxd1 {[%clk 0:00:27.1]} 34... Qb3
{[%clk 0:00:01.3]} 35. Rd7 {[%clk 0:00:22.8]} 35... Bf8 {[%clk 0:00:01]} 36. Qe5
{[%clk 0:00:19.6]} 1-0

[Event "Early-Titled-Tuesday-Blitz-June-18-2024"]
[Site "Chess.com"]
[Date "2024.06.18"]
[Round "10"]
[White "Mysterio47"]
[Black "Fandorine"]
[Result "1-0"]
[WhiteElo "2850"]
[BlackElo "2937"]
[TimeControl "180+1"]
[EndTime "9:57:31 PDT"]
[Termination "Mysterio47 won by resignation"]

1. e4 {[%clk 0:03:00.9]} 1... c5 {[%clk 0:02:57.9]} 2. Nf3 {[%clk 0:03:01]} 2...
Nc6 {[%clk 0:02:57.1]} 3. d4 {[%clk 0:03:01.2]} 3... cxd4 {[%clk 0:02:58]} 4.
Nxd4 {[%clk 0:03:01.9]} 4... e6 {[%clk 0:02:57.9]} 5. Nc3 {[%clk 0:03:01.6]}
5... Qc7 {[%clk 0:02:58.5]} 6. Be3 {[%clk 0:03:02]} 6... a6 {[%clk 0:02:58.8]}
7. Qf3 {[%clk 0:03:02.7]} 7... h5 {[%clk 0:02:58]} 8. Nxc6 {[%clk 0:03:01.2]}
8... bxc6 {[%clk 0:02:57.6]} 9. Bd3 {[%clk 0:03:00.1]} 9... Nf6 {[%clk
0:02:55.4]} 10. h3 {[%clk 0:02:51.9]} 10... Rb8 {[%clk 0:02:55.1]} 11. Rb1
{[%clk 0:02:51]} 11... Be7 {[%clk 0:02:51.1]} 12. Bf4 {[%clk 0:02:44.8]} 12...
e5 {[%clk 0:02:49.9]} 13. Bg5 {[%clk 0:02:43.8]} 13... a5 {[%clk 0:02:48.5]} 14.
O-O {[%clk 0:02:42.5]} 14... d6 {[%clk 0:02:41]} 15. Bc4 {[%clk 0:02:37.9]}
15... h4 {[%clk 0:02:12.8]} 16. Rfd1 {[%clk 0:02:35.5]} 16... Be6 {[%clk
0:02:12.6]} 17. Qd3 {[%clk 0:02:30.6]} 17... Nh5 {[%clk 0:02:00.4]} 18. Be3
{[%clk 0:02:24.2]} 18... O-O {[%clk 0:01:52.8]} 19. Ne2 {[%clk 0:02:17.4]} 19...
Qc8 {[%clk 0:01:37.8]} 20. Bd2 {[%clk 0:02:09.3]} 20... d5 {[%clk 0:01:18.5]}
21. exd5 {[%clk 0:02:02.9]} 21... e4 {[%clk 0:01:18.6]} 22. Qxe4 {[%clk
0:01:36]} 22... cxd5 {[%clk 0:01:17.8]} 23. Qf3 {[%clk 0:01:36.7]} 23... Qxc4
{[%clk 0:01:10.7]} 24. Qxh5 {[%clk 0:01:36.6]} 24... Qxa2 {[%clk 0:01:09.7]} 25.
Bc3 {[%clk 0:01:31.5]} 25... Qc4 {[%clk 0:01:04.9]} 26. Nd4 {[%clk 0:01:31.3]}
26... Bf6 {[%clk 0:01:04.7]} 27. Rd3 {[%clk 0:01:19.2]} 27... a4 {[%clk
0:01:01.7]} 28. Rbd1 {[%clk 0:01:19.8]} 28... Rbe8 {[%clk 0:00:23.6]} 29. Nf3
{[%clk 0:01:18.4]} 29... Bxc3 {[%clk 0:00:14.2]} 30. Rxc3 {[%clk 0:01:19.3]}
30... Qb5 {[%clk 0:00:06.7]} 31. Rd4 {[%clk 0:01:17]} 31... f6 {[%clk 0:00:02]}
32. Rxh4 {[%clk 0:01:13.5]} 32... Qxb2 {[%clk 0:00:02.3]} 33. Rc7 {[%clk
0:01:13.5]} 33... Qc1+ {[%clk 0:00:01.9]} 34. Kh2 {[%clk 0:01:13.4]} 34... Qh6
{[%clk 0:00:02.8]} 35. Qxh6 {[%clk 0:01:05.3]} 35... gxh6 {[%clk 0:00:03.7]} 36.
Rxa4 {[%clk 0:01:04.7]} 36... Rc8 {[%clk 0:00:02.8]} 37. Raa7 {[%clk 0:01:04.9]}
37... Rxc7 {[%clk 0:00:02.9]} 38. Rxc7 {[%clk 0:01:05.8]} 38... Rb8 {[%clk
0:00:02.7]} 39. Nd4 {[%clk 0:01:05.7]} 39... Rb6 {[%clk 0:00:03.4]} 40. Kg3
{[%clk 0:01:04.8]} 40... Bf7 {[%clk 0:00:03.3]} 41. Nf5 {[%clk 0:01:04.4]} 41...
Kf8 {[%clk 0:00:04]} 42. Nxh6 {[%clk 0:01:04.5]} 42... Bg6 {[%clk 0:00:04.1]}
43. Ng4 {[%clk 0:01:04.2]} 43... d4 {[%clk 0:00:03.1]} 44. Rd7 {[%clk
0:01:02.3]} 44... Rb4 {[%clk 0:00:02.6]} 45. Nxf6 {[%clk 0:01:02]} 45... Bxc2
{[%clk 0:00:03.3]} 46. h4 {[%clk 0:01:00.9]} 46... Bf5 {[%clk 0:00:02.8]} 47.
Rd5 {[%clk 0:00:57]} 47... Be6 {[%clk 0:00:03.1]} 48. Re5 {[%clk 0:00:57.6]}
48... Kf7 {[%clk 0:00:03.2]} 49. Ne4 {[%clk 0:00:57]} 49... Ba2 {[%clk
0:00:02.6]} 50. Ra5 {[%clk 0:00:53.3]} 50... Bb1 {[%clk 0:00:02.1]} 51. Ng5+
{[%clk 0:00:53.5]} 51... Kg7 {[%clk 0:00:01.6]} 52. Nf3 {[%clk 0:00:50.8]} 52...
d3 {[%clk 0:00:01.8]} 53. Rd5 {[%clk 0:00:50.9]} 53... Rb3 {[%clk 0:00:01.9]}
54. Nd2 {[%clk 0:00:51]} 1-0